Cogmind - Beta 13 @@@ ROGUE MODE // 2024.04.09 @ 23:49:14 Player: Copyrite Result: Destroyed by D-53 Grenadier with Mini Grenade Launcher Performance ------------- Evolutions (0) 0 Regions Visited (2) 400 Robots Destroyed (14) 70 Value Destroyed (435) 435 Prototype IDs (2) 40 Alien Tech Used (0) 0 Bonus (0) 0 TOTAL SCORE: 945 Bonus ------- None Cogmind --------- Core Integrity 0/250 Matter 203/300 Energy 160/160 System Corruption 0% Temperature Cool (0) Movement Core (500) Ox9 Location -10/Mines Parts ------- > --- POWER (1) -------- Light Nuclear Core > --- PROPULSION (2) --- (None) > --- UTILITY (2) ------ Large Storage Unit Signal Interpreter > --- WEAPON (2) ------- Grenade Launcher > --- INVENTORY (15) --- Improved Heat Sink Small Storage Unit Heavy Assault Rifle Heavy Assault Rifle Hammer Peak State ------------ > --- POWER ------------ Light Nuclear Core > --- PROPULSION ------- Aluminum Leg Aluminum Leg > --- UTILITY ---------- Large Storage Unit Signal Interpreter > --- WEAPON ----------- Rocket Launcher Mining Claw > --- INVENTORY -------- Improved Heat Sink Small Storage Unit Heavy Assault Rifle Heavy Assault Rifle Grenade Launcher Hammer [Rating: 11] Favorites ----------- Power Ion Engine Engine Ion Engine Power Core Light Nuclear Core Propulsion Light Treads Treads Light Treads Leg Aluminum Leg Utility Small Storage Unit Storage Small Storage Unit Processor Signal Interpreter Weapon Heavy Assault Rifle Energy Gun Medium Laser Ballistic Gun Heavy Assault Rifle Launcher Rocket Launcher Impact Weapon Hammer Slashing Weapon Mining Claw Build | -11 -10 -10 ------- Run | Yrd Mat Min Slots Evolved . | . . . Power . | . . . Propulsion . | . . . Utility . | . . . Weapon . | . . . Parts Attached 22 | 6 6 10 Power 3 | 1 . 2 Engine 2 | 1 . 1 Core 1 | . . 1 Reactor . | . . . Propulsion 4 | 2 . 2 Treads 2 | 2 . . Leg 2 | . . 2 Wheel . | . . . Hover . | . . . Flight . | . . . Utility 3 | 1 . 2 Device . | . . . Storage 2 | 1 . 1 Processor 1 | . . 1 Hackware . | . . . Protection . | . . . Artifact . | . . . Weapon 12 | 2 6 4 Energy Gun 2 | 2 . . Energy Cannon . | . . . Ballistic Gun 6 | . 6 . Ballistic Cannon . | . . . Launcher 2 | . . 2 Special Weapon . | . . . Impact Weapon 1 | . . 1 Slashing Weapon 1 | . . 1 Piercing Weapon . | . . . Special Melee Weapon . | . . . Unidentified Prototypes . | . . . Parts Lost 8 | . . 8 Power 2 | . . 2 Propulsion 4 | . . 4 Utility . | . . . Weapon 2 | . . 2 Highest Loss Streak 7 | . . 7 To Critical Strikes . | . . . Average Slot Usage (%) 87 | . 84 93 Engine 13 | . 14 13 Treads 27 | . 28 26 Storage 14 | . 14 14 Processor 3 | . . 8 Energy Gun 1 | . 1 . Ballistic Gun 22 | . 25 15 Slashing Weapon 3 | . . 8 Naked Turns . | . . . Heaviest Build 31 | 14 16 31 Greatest Support 40 | 40 40 40 Greatest Overweight (x) 1 | . . 1 Average Overweight (x) . | . . . Largest Inventory Capacity 15 | 8 8 15 Average Capacity 8 | 7 8 11 Most Carried 9 | 4 8 9 Average Carried 7 | 2 6 8 Final Capacity 15 | 8 8 15 Final Carried 8 | 4 8 5 Class Distribution -------------------- 100% | Mutant Dominant Class ---------------- Mutant | -10/Materials Mutant | -10/Mines Resources | -11 -10 -10 ----------- Run | Yrd Mat Min Matter Collected 586 | 221 245 120 Remotely . | . . . Salvage Created 591 | . 475 116 Parts 32 | . 27 5 Haulers Intercepted . | . . . Recyclers Shooed 3 | . 3 . Parts Field Recycled . | . . . Retrieved Matter . | . . . Parts Self-Destructed . | . . . Prevented . | . . . Kills | -11 -10 -10 ------- Run | Yrd Mat Min Combat Hostiles Destroyed 14 | . 11 3 Guns 13 | . 11 2 AOE 1 | . . 1 Classes Destroyed 4 | . 3 1 Recycler 1 | . 1 . Swarmer 3 | . 3 . Grunt 10 | . 8 2 Assembled 1 | . . 1 Best Kill Streak 3 | . 3 2 Combat Bots Only 2 | . 2 2 Max Kills in Single Turn 1 | . 1 1 Gunslinging . | . . . Exploded 1 | . . 1 Melee . | . . . Uniques/NPCs Destroyed . | . . . Combat | -11 -10 -10 -------- Run | Yrd Mat Min Hostile Shots Fired 93 | . 55 38 Missed 33 | . 21 12 Damage Taken 1168 | . 394 774 Core 252 | . 96 156 Absorbed by Shields . | . . . Core Remaining (%) 100 | 100 . . Volleys Fired 63 | 3 39 21 Largest 2 | 2 2 2 Hottest 100 | 100 100 46 Shots Fired 119 | 6 78 35 Gun 112 | 6 78 28 Cannon . | . . . Launcher 7 | . . 7 Special . | . . . Kinetic 102 | . 74 28 Thermal 10 | 6 4 . Explosive 7 | . . 7 Electromagnetic . | . . . Robot Hit Streak 12 | 6 9 12 Robot Miss Streak 3 | . 3 2 Penetration Max . | . . . Secondary Targets 2 | . 1 1 Max Gunslinging Chain 1 | . 1 1 Shots Hit Robots 79 | 6 47 26 Core Hits 34 | 1 21 12 Critical Kills 1 | . 1 . Critical Parts Destroyed . | . . . Critical Strikes 1 | . 1 . Destroy 1 | . 1 . Melee Attacks 14 | . . 14 Impact 12 | . . 12 Slashing 2 | . . 2 Piercing . | . . . Sneak Attacks . | . . . Combat Hostiles . | . . . Follow-up Attacks . | . . . Damage Inflicted 1053 | 75 574 404 Guns 928 | 75 574 279 Cannons . | . . . Explosions 125 | . . 125 Melee . | . . . Ramming . | . . . Kinetic 816 | . 537 279 Thermal 112 | 75 37 . Explosive 125 | . . 125 Electromagnetic . | . . . Impact . | . . . Slashing . | . . . Piercing . | . . . Highest Corruption . | . . . Average Corruption . | . . . Corruption Purged . | . . . Corruption Blocked . | . . . Overload Shots . | . . . Overflow Damage . | . . . Projectiles . | . . . Explosions . | . . . Melee . | . . . Knockbacks . | . . . Impact . | . . . Kinetic . | . . . Secondary . | . . . Self-Inflicted Damage . | . . . Shots . | . . . Rammed . | . . . Targets Rammed . | . . . Kicked . | . . . Crushed . | . . . Highest Temperature 117 | 117 78 4 Average Temperature 24 | 59 14 3 Received Heat Transfer 285 | . 186 99 Siege Activations . | . . . Robots Corrupted . | . . . Combat Hostiles . | . . . Parts Fried . | . . . Impact Corruptions . | . . . Robots Melted . | . . . Combat Hostiles . | . . . Parts Melted . | . . . Heat Transferred 333 | 222 111 . Parts Sabotaged . | . . . Parts Stolen . | . . . Parts Stripped . | . . . Power Chain Reactions . | . . . Alert | -11 -10 -10 ------- Run | Yrd Mat Min Peak Influence 189 | . 189 106 Initial 36 | . . 36 Average 80 | . 91 72 Maximum Alert Level . | . . . Low Security (%) 100 | 100 100 100 Level 1 . | . . . Level 2 . | . . . Level 3 . | . . . Level 4 . | . . . Level 5 . | . . . High Security . | . . . Max Security . | . . . Squads Dispatched 2 | . 2 . Investigation 1 | . 1 . Extermination . | . . . Reinforcement 1 | . 1 . Assault . | . . . Garrison . | . . . Intercept . | . . . Searches Triggered . | . . . Construction Impeded . | . . . Haulers Reinforced . | . . . Active Scanning Responses . | . . . Cargo Convoy Interrupts . | . . . Stealth | -11 -10 -10 --------- Run | Yrd Mat Min Distress Signals 1 | . 1 . Communications Jammed . | . . . Distress Signals . | . . . Times Spotted 35 | . 21 14 Peak Tracking Total 9 | . 3 9 Tactical Retreats 2 | . 2 . Traps | -11 -10 -10 ------- Run | Yrd Mat Min Traps Triggered 1 | . 1 . Indirectly . | . . . Trap Hack Attempts . | . . . Triggered . | . . . Disarmed . | . . . Reprogrammed . | . . . Reused . | . . . Traps Extracted . | . . . Installed . | . . . Triggered . | . . . Machines | -11 -10 -10 ---------- Run | Yrd Mat Min Machines Disabled 2 | . 1 1 Max in Single Turn 1 | . 1 1 Machines Repaired . | . . . Machines Dismantled . | . . . Machines Sabotaged . | . . . Overloaded Fab Kills . | . . . Hacking | -11 -10 -10 --------- Run | Yrd Mat Min Machines Accessed 7 | . 7 . Terminals 7 | . 7 . Fabricators . | . . . Repair Stations . | . . . Recycling Units . | . . . Scanalyzers . | . . . Garrison Access . | . . . Total Hacks 25 | . 25 . Successful 11 | . 11 . Failed 14 | . 14 . Catastrophic 1 | . 1 . Database Lockouts . | . . . Manual 19 | . 19 . Terminals 25 | . 25 . Fabricators . | . . . Repair Stations . | . . . Recycling Units . | . . . Scanalyzers . | . . . Garrison Access . | . . . Terminal Hacks 5 | . 5 . Prototype ID Bank 1 | . 1 . Branch Access Points 1 | . 1 . Terminal Index 1 | . 1 . Alert Level 2 | . 2 . Fabricator Hacks . | . . . Repair Station Hacks . | . . . Recycling Unit Hacks . | . . . Scanalyzer . | . . . Garrison Access Hacks . | . . . Unauthorized Hacks 6 | . 6 . Terminals 6 | . 6 . Botnet 6 | . 6 . Fabricators . | . . . Repair Stations . | . . . Recycling Units . | . . . Scanalyzers . | . . . Garrison Access . | . . . Data Cores Recovered . | . . . Used . | . . . Hacking Detections 7 | . 7 . Full Trace Events . | . . . Feedback Events . | . . . Feedback Blocked . | . . . Robot Schematics Acquired . | . . . Robots Built . | . . . Authchips . | . . . Time . | . . . Total Robot Build Rating . | . . . Part Schematics Acquired . | . . . Parts Built . | . . . Authchips . | . . . Time . | . . . Total Part Build Rating . | . . . Parts Repaired . | . . . Time . | . . . Parts Recycled . | . . . Recycled Matter . | . . . Retrieved Matter . | . . . Retrieved Components . | . . . Parts Scanalyzed . | . . . Part Schematics Acquired . | . . . Parts Damaged . | . . . Bothacking | -11 -10 -10 ------------ Run | Yrd Mat Min Used RIF Installer . | . . . Robots Hacked . | . . . Non-combat . | . . . Combat . | . . . Robot Hacks Applied . | . . . Relay Couplers Released . | . . . Fabnet Peak Effective % . | . . . Robots Rewired . | . . . Allies Hacked . | . . . Hacks Repelled . | . . . Allies | -11 -10 -10 -------- Run | Yrd Mat Min Total Allies . | . . . Largest Group . | . . . Highest-Rated Group . | . . . Highest-Rated Ally . | . . . Total Orders . | . . . Ally Attacks . | . . . Total Damage . | . . . Kills . | . . . Allies Corrupted . | . . . Allies Melted . | . . . Intel | -11 -10 -10 ------- Run | Yrd Mat Min Robot Analysis Total . | . . . Derelict Logs Recovered 1 | . . 1 Drone Launches . | . . . Drone Recoveries . | . . . Exploration | -11 -10 -10 ------------- Run | Yrd Mat Min Turns Passed 1569 | 87 962 520 Spaces Moved 783 | 44 494 245 Core 4 | 4 . . Treads 779 | 40 494 245 Legs . | . . . Wheels . | . . . Hover . | . . . Flight . | . . . Fastest Speed 50 | 50 160 160 Average Speed 159 | 150 160 161 Slowest Speed 240 | 160 160 240 Overloaded Moves . | . . . Propulsion Burnouts . | . . . Robots Hopped . | . . . Cave-ins Triggered . | . . . Exploration Rate (%) 46 | 4 68 68 Regions Visited 2 Branch Regions 1 Pre-discovered Areas 1 | . . 1 Known Exits Taken 1 | . 1 . Unknown Exits Taken 1 | 1 . . Scrap Searched 1 | . . 1 Spaces Dug . | . . . Terrain Destroyed 4 | . . 4 Melee . | . . . Projectile . | . . . AOE 4 | . . 4 Terrain Rammed . | . . . Walls Destroyed . | . . . Machines Disabled . | . . . Actions | -11 -10 -10 --------- Run | Yrd Mat Min Total 963 | 56 599 308 Wait 61 | . 45 16 Move 781 | 43 493 245 Hop . | . . . Pick Up 13 | 4 7 2 Fast Attach 8 | 6 2 . Attach 6 | . . 6 Detach . | . . . Swap 8 | . 4 4 Drop 9 | . 9 . Fire 63 | 3 39 21 Melee 14 | . . 14 Ram . | . . . Kick . | . . . Crush . | . . . Escape Stasis . | . . . Rewire . | . . . Trap . | . . . Miscellaneous . | . . . Route ------- -11/Scrapyard -10/Materials (discovered 4 exits: *Mat x2 / *Min x2) -10/Mines (discovered 3 exits: *Mat x2 / *Sub) History --------- Turn | Location | Event 3 | -11/Scrapyard | Discovered new exit (range 15) 88 | -11/Scrapyard | Entered Materials 307 | -10/Materials | Build established: Mutant 407 | -10/Materials | Discovered new exit (range 9) 631 | -10/Materials | Discovered new exit (range 16) 843 | -10/Materials | Identified exit to Mines 1050 | -10/Materials | Entered Mines 1249 | -10/Mines | Discovered new exit (range 5) 1259 | -10/Mines | Identified exit to Subcaves 1312 | -10/Mines | Discovered new exit (range 12) 1315 | -10/Mines | Learned location of Zion (-7) 1364 | -10/Mines | Received a Rocket Launcher from a helpful Derelict 1384 | -10/Mines | Discovered new exit (range 9) 1396 | -10/Mines | Identified exit to Materials 1521 | -10/Mines | Assembled infested the area 1526 | -10/Mines | Assisted by a Guerilla fighting off Assembled 1546 | -10/Mines | Core integrity fell below 50% 1561 | -10/Mines | Core integrity fell below 20% 1570 | -10/Mines | Destroyed by D-53 Grenadier with Mini Grenade Launcher Last Messages --------------- K-01 Serf collects debris. as-05535 destroyed. K-01 Serf collects debris. Aluminum Leg destroyed. The unstable cave ceiling collapses. D-53 Grenadier destroyed. Rocket Launcher destroyed. U-05 Engineer lays Concrete. K-01 Serf collects debris. Mining Claw destroyed. U-05 Engineer builds a Wall. U-05 Engineer lays Concrete. The unstable cave ceiling collapses. U-05 Engineer lays Concrete. K-01 Serf collects debris. U-05 Engineer lays Concrete. The unstable cave ceiling collapses. U-05 Engineer lays Concrete. U-05 Engineer builds a Wall. Aluminum Leg destroyed. Map ----- +----------------------------------------------------+ | #????????????????????????????????????????????? | | ##?????????###???????????????????????????????? | | #####????# ##??????????????????????????????? | | #??## ##?????????????????????????????? | | ### #?## #?????????????????????????????? | | #?# #?# #?????????????????????????????? | | # #?# ### #?????????????????????????????? | | ## #### ## ##????????????????????????????? | | ?##### ##???????????????????????????? | | ##???# ### #???????????????????????????? | | ##??# #?## #?##???#????????????????????? | | ##?# #??## ##? #? #????????????????????? | | ### #???# ###?# ? #????????????????????? | | ##### ##???;# #a#????????????????????? | | # """ ##???## %#????????????????????? | | # """ ##??### # ????????????????????? | | """ #### #?### % # ????????????????????? | | ##?## #?# #?####???????????????? | | #### ### ## # ##??????????????? | | ### ## ##?????????????? | | # ### "% k d #?????????????? | | # ##?# " #?????????????? | | ##??## ####### #?????????????? | | ##???####???????# ### #?????????????? | | #???????????????# ##?????????????????? | | #??????????????# @ #?????????????????? | | ?????????????# #?????????????????? | | ## ?????????????## #?????????????????? | | ?? ?????????????# #?????????????????? | | ?? ##?????????????# # ##?????????????????? | | ?? #??????????????###u #??????????????????? | | ?? ???????????????? u ##??????????????????? | | ???????????????????? ###???????????????????? | | #????????????## ####?????????????????????? | | ????????????????????# #????????????##???????????? | | ????????????????????# ????????????# ##??????????? | | ???????????? #?????# ??????????## #??????????? | | ??????????? #????# #?????????# ???????????? | | ??????????? #???# #?????????# #???????????? | | ?????????? ???? #?????????# #???????????? | | ?????????? ???? ###??????## ## ????????? | | ??????#### ???? ##??#### # ????????? | | ?????? ???? #?## # ????????? | | ?????? #?# #???? ?## %%" # ????????? | | ?????? #??# #???# ?## %% # ????????? | | #????? #??# #??## ??# ## ###?????? | | ##????# ????# #?## #??# ##? ??????? | | ###### #?????# #?# #??## # ##?? ??????? | | ####### #?# #????# ## #??? ? ##### | | ## #?# #???## ### ### ## | +----------------------------------------------------+ Best States ------------- Heat Dissipation 25 Energy Generation 14 Energy Capacity 250 Matter Stores 300 Matter Capacity 300 Sight Range 16 Terrain Scan Density 10 Evasion (%) 40 Recoil Reduction 2 Item Schematics ----------------- None Robot Schematics ------------------ None Fabricated ------------ Nothing Alien Tech Used ----------------- None Achievements -------------- None Challenges ------------ None Game ------ Seed UtilityDerelictInitializer Manual? 0 Play Time 00:15:45 Cumulative 16.5 hours Start 2024.04.09 @ 23:33:03 End 2024.04.09 @ 23:49:14 Sessions 1 Manual Loads 0 Difficulty Rogue Special Mode None Game No. 31 Rogue 31 Adventurer 0 Explorer 0 Win Type - Total 0 Types 0/0/0/0/0/0/0/0/0 Lore% 14 Gallery% 21 Achievement% 22 Wizard Run 0 Options --------- Layout 1 ASCII 0 Keyboard 0 Movement Numpad Keybinds 0 Fullscreen 1 Font 32/SmallcapsGlow Map View 50x35 Zoom Use 0% Tactical HUD 0 Map Filters NONE Filters NONE Steam 1 RUN: edd7f020-42ea-4b77-b3ed-c6f283afde41